fUSD/lending_fUSD_20250421
["ID","MTS","AMOUNT","RATE_DAILY","PERIOD"]
[358524506,1745232633151,-500.0,0.0004847,7]
[358524507,1745232633160,-500.0,0.0004847,7]
[358524508,1745232633169,-500.0,0.0004847,7]
[358524509,1745232633178,-500.0,0.0004847,7]
[358524510,1745232633187,-500.0,0.0004847,7]
[358524511,1745232633197,-500.0,0.0004847,7]
[358524512,1745232633206,-500.0,0.0004847,7]
[358524513,1745232633216,-160.35080115,0.00048473,10]
[358524514,1745232633225,-500.0,0.00048473,10]
[358524515,1745232633235,-160.53149574,0.00048473,10]
[358524516,1745232633244,-175.44011559,0.00048473,10]
[358524517,1745232633254,-184.96365317,0.00048473,7]
[358524518,1745232633263,-500.0,0.0004848,7]
[358524519,1745232633273,-500.0,0.0004848,7]
[358524520,1745232633282,-500.0,0.0004848,7]
[358524521,1745232633293,-502.3897624,0.0004848,7]
[358524522,1745232633303,-507.21837456,0.0004848,7]
[358524523,1745232633313,-500.0,0.0004848,7]
[358524524,1745232633322,-500.0,0.0004848,7]
[358524525,1745232633332,-500.0,0.0004848,7]
[358524526,1745232633341,-500.0,0.0004848,7]
[358524527,1745232633351,-498.00699,0.0004848,7]
[358524528,1745232633361,-511.98,0.0004848,7]
[358524529,1745232633371,-500.0,0.0004848,7]
[358524530,1745232633380,-500.0,0.0004848,7]
[358524531,1745232633390,-498.98501801,0.0004848,7]
[358524532,1745232633400,-500.0,0.0004848,7]
[358524533,1745232633410,-500.0,0.0004848,7]
[358524534,1745232633420,-478.9,0.0004848,7]
[358524535,1745232633429,-1000.0,0.0004848,7]
[358524536,1745232633440,-500.0,0.0004848,7]
[358524537,1745232633452,-500.0,0.0004848,7]
[358524538,1745232633462,-509.42,0.0004848,7]
[358524539,1745232633472,-549.58721156,0.0004848,7]
[358524540,1745232633482,-500.0,0.0004848,7]
[358524541,1745232633492,-500.0,0.0004848,7]
[358524542,1745232633502,-500.0,0.0004848,7]
[358524543,1745232633512,-500.0,0.0004848,7]
[358524544,1745232633522,-239.16079483,0.00048499,15]
[358524545,1745232633532,-2249.41709949,0.00048534,120]
[358524546,1745232633544,-239.16079483,0.00048542,15]
[358524547,1745232633554,-500.0,0.00048548,120]
[358524548,1745232633564,-269.09853175,0.00048548,120]
[358524549,1745232633574,-239.16079483,0.00048584,15]
[358524550,1745232633584,-500.0,0.000486,2]
[358524551,1745232633595,-566.96587753,0.000486,76]
[358524552,1745232633605,-152.6,0.000486,45]
[358524553,1745232633615,-152.6,0.000486,45]
[358524554,1745232633624,-152.6,0.000486,45]
[358524555,1745232633634,-152.6,0.000486,45]
[358524556,1745232633644,-152.6,0.000486,45]
[358524557,1745232633653,-152.6,0.000486,45]
[358524558,1745232633664,-152.6,0.000486,45]
[358524559,1745232633674,-239.16079483,0.00048627,15]
[358524560,1745232633684,-302.5961,0.00048654,2]
[358524561,1745232633693,-165.90125611,0.00048656,28]
[358524562,1745232633703,-687.52640385,0.00048666,2]
[358524563,1745232633712,-239.16079483,0.0004867,15]
[358524564,1745232633722,-2696.99105078,0.00048673,15]
[358524565,1745232633731,-27737.732,0.00048676,2]
[358524566,1745232633741,-2696.9910507,0.00048682,15]
[358524567,1745232633750,-2696.9910507,0.00048691,15]
[358524568,1745232633759,-2696.9910507,0.00048701,15]
[358524569,1745232633769,-248.44,0.00048709,2]
[358524570,1745232633778,-2696.9910507,0.0004871,15]
[358524571,1745232633789,-239.16079483,0.00048713,15]
[358524572,1745232633799,-2696.9910507,0.00048719,15]
[358524573,1745232633809,-150.0,0.00048726,7]
[358524574,1745232633819,-2696.9910507,0.00048728,15]
[358524575,1745232633828,-2696.9910507,0.00048738,15]
[358524576,1745232633838,-481.5604,0.00048744,2]
[358524577,1745232633847,-543.9556144,0.00048745,7]
[358524578,1745232633856,-500.0,0.00048745,7]
[358524579,1745232633865,-500.0,0.00048745,7]
[358524580,1745232633875,-675.5830732,0.00048745,20]
[358524581,1745232633884,-500.0,0.00048745,7]
[358524582,1745232633894,-500.0,0.00048745,7]
[358524583,1745232633903,-572.38,0.00048745,7]
[358524584,1745232633913,-209.1856054,0.00048745,7]
[358524585,1745232633922,-246.7242764,0.00048745,7]
[358524586,1745232633931,-260.76249963,0.00048745,7]
[358524587,1745232633941,-500.0,0.00048745,7]
[358524588,1745232633950,-500.0,0.00048745,7]
[358524589,1745232633960,-43347.5275854,0.00048746,4]
[358524590,1745232633970,-2696.9910507,0.00048747,15]
[358524591,1745232633980,-177.96834274,0.00048754,25]
[358524592,1745232633989,-492.29036286,0.00048755,2]
[358524593,1745232634000,-500.0,0.00048755,7]
[358524594,1745232634009,-432.15378285,0.00048755,7]
[358524595,1745232634018,-500.0,0.00048755,7]
[358524596,1745232634028,-500.0,0.00048755,7]
[358524597,1745232634040,-498.42615,0.00048755,7]
[358524598,1745232634049,-158.90007297,0.00048756,25]
[358524599,1745232634059,-239.16079483,0.00048756,15]
[358524600,1745232634069,-566.96587752,0.00048756,76]
[358524601,1745232634079,-383.2329992,0.00048756,33]
[358524602,1745232634088,-2696.9910507,0.00048756,15]
[358524603,1745232634098,-165.90125611,0.00048756,28]
[358524604,1745232634108,-6920.68100108,0.00048756,2]
[358524605,1745232634117,-502.45248054,0.00048773,10]
[358524606,1745232634128,-4034.758,0.00048776,2]
[358524607,1745232634138,-302.7644,0.00048776,2]
[358524608,1745232634148,-43347.5275854,0.0004879,4]
[358524609,1745232634158,-387.59399054,0.00048799,7]
[358524610,1745232634167,-506.32796086,0.00048799,7]
[358524611,1745232634177,-500.0,0.00048799,7]
[358524612,1745232634186,-500.0,0.00048799,7]
[358524613,1745232634195,-172.57290959,0.00048799,7]
[358524614,1745232634204,-196.90588995,0.00048799,7]
[358524615,1745232634214,-500.0,0.00048799,7]
[358524616,1745232634223,-500.0,0.00048799,7]
[358524617,1745232634232,-549.65409876,0.00048799,7]
[358524618,1745232634242,-159.69912674,0.00048799,7]
[358524619,1745232634251,-500.0,0.00048799,7]
[358524620,1745232634261,-500.0,0.00048799,7]
[358524621,1745232634270,-500.0,0.00048799,7]
[358524622,1745232634279,-500.0,0.00048799,7]
[358524623,1745232634289,-49550.95829897,0.000488,120]
[358524624,1745232634298,-497.40849284,0.000488,30]
[358524625,1745232634308,-500.0,0.000488,30]
[358524626,1745232634317,-1000.0,0.000488,30]
[358524627,1745232634327,-150.0,0.00048825,7]
[358524628,1745232634336,-500.0,0.00048827,7]
[358524629,1745232634345,-384.04610842,0.00048834,120]
[358524630,1745232634355,-86695.0551708,0.00048835,4]
[358524631,1745232634364,-1464.00531666,0.00048835,5]
[358524632,1745232634373,-511.98,0.00048838,7]
[358524633,1745232634383,-500.0,0.00048838,7]
[358524634,1745232634393,-500.0,0.00048838,7]
[358524635,1745232634402,-500.0,0.00048838,7]
[358524636,1745232634411,-509.42,0.00048838,7]
[358524637,1745232634422,-500.0,0.00048838,7]
[358524638,1745232634431,-500.0,0.00048838,7]
[358524639,1745232634440,-330.331505,0.00048838,7]
[358524640,1745232634450,-21673.7637927,0.00048843,4]
[358524641,1745232634459,-500.0,0.00048843,7]
[358524642,1745232634468,-500.0,0.00048843,7]
[358524643,1745232634477,-500.0,0.00048843,7]
[358524644,1745232634486,-500.0,0.00048843,7]
[358524645,1745232634496,-578.63,0.00048843,7]
[358524646,1745232634505,-308.66981791,0.00048843,7]
[358524647,1745232634516,-500.0,0.00048845,7]
[358524648,1745232634526,-500.0,0.00048845,7]
[358524649,1745232634535,-130042.582756,0.00048846,4]
[358524650,1745232634548,-5124.01860831,0.00048846,5]
[358524651,1745232634558,-65021.2913781,0.00048847,4]
[358524652,1745232634569,-2928.01063332,0.00048847,5]
[358524653,1745232634578,-500.0,0.00048848,7]
[358524654,1745232634588,-511.98,0.00048848,7]
[358524655,1745232634601,-500.0,0.00048848,7]
[358524656,1745232634611,-500.0,0.00048848,7]
[358524657,1745232634620,-494.13057729,0.00048848,7]
[358524658,1745232634629,-509.42,0.00048848,7]
[358524659,1745232634639,-500.0,0.00048848,7]
[358524660,1745232634649,-500.0,0.00048848,7]
[358524661,1745232634658,-21673.7637927,0.0004885,4]
[358524662,1745232634667,-500.0,0.00048852,7]
[358524663,1745232634679,-544.21315248,0.00048853,7]
[358524664,1745232634689,-372.3205154,0.00048853,7]
[358524665,1745232634698,-500.0,0.00048853,7]
[358524666,1745232634707,-496.62775,0.00048853,7]
[358524667,1745232634717,-500.0,0.00048853,7]
[358524668,1745232634726,-500.0,0.00048855,7]
[358524669,1745232634736,-500.0,0.00048855,7]
[358524670,1745232634745,-500.0,0.00048855,7]
[358524671,1745232634754,-534.00956031,0.00048855,7]
[358524672,1745232634763,-201.95889603,0.00048855,7]
[358524673,1745232634771,-610.19819395,0.00048855,7]
[358524674,1745232634781,-500.0,0.00048855,7]
[358524675,1745232634790,-500.0,0.00048855,7]
[358524676,1745232634799,-500.0,0.00048855,7]
[358524677,1745232634808,-500.0,0.00048855,7]
[358524678,1745232634817,-500.0,0.00048855,7]
[358524679,1745232634826,-500.0,0.00048855,7]
[358524680,1745232634835,-500.0,0.00048855,7]
[358524681,1745232634844,-500.0,0.00048855,7]
[358524682,1745232634853,-500.0,0.00048855,7]
[358524683,1745232634862,-500.0,0.00048855,7]
[358524684,1745232634871,-500.0,0.00048855,7]
[358524685,1745232634880,-500.0,0.00048855,7]
[358524686,1745232634889,-483.65381237,0.00048855,7]
[358524687,1745232634899,-500.0,0.00048855,120]
[358524688,1745232634908,-500.0,0.00048855,120]
[358524689,1745232634917,-500.0,0.00048855,120]
[358524690,1745232634926,-500.0,0.00048855,120]
[358524691,1745232634936,-500.0,0.00048855,7]
[358524692,1745232634945,-500.0,0.00048855,7]
[358524693,1745232634954,-500.0,0.00048855,7]
[358524694,1745232634964,-500.0,0.00048855,7]
[358524695,1745232634973,-500.0,0.00048855,7]
[358524696,1745232634982,-587.20113709,0.00048855,7]
[358524697,1745232634991,-500.0,0.00048855,7]
[358524698,1745232635001,-337.24318651,0.00048855,7]
[358524699,1745232635010,-2972.5156599,0.00048855,30]
[358524700,1745232635019,-500.0,0.00048855,7]
[358524701,1745232635028,-500.0,0.00048855,7]
[358524702,1745232635038,-500.0,0.00048855,7]
[358524703,1745232635047,-500.0,0.00048855,7]
[358524704,1745232635056,-500.0,0.00048855,7]
[358524705,1745232635065,-500.0,0.00048855,7]
[358524706,1745232635074,-498.98205551,0.00048855,7]
[358524707,1745232635083,-500.0,0.00048855,7]
[358524708,1745232635092,-500.0,0.00048855,7]
[358524709,1745232635102,-212.67,0.00048855,7]
[358524710,1745232635111,-732.00265833,0.00048855,5]
[358524711,1745232635120,-854.02220019,0.00048856,2]
[358524712,1745232635129,-173264.91878241,0.00048856,2]
[358524717,1745232637679,-500.0,0.00048727,2]
[358524718,1745232637690,-555.29796144,0.00048745,7]
[358524719,1745232637699,-193.78831667,0.00048756,10]
[358524720,1745232637709,-500.0,0.00048799,2]
[358524721,1745232637718,-500.0,0.00048845,2]
[358524722,1745232637728,-500.0,0.00048855,2]
[358524723,1745232637737,-428.04676345,0.00048855,2]
[358524724,1745232637784,-71.95323655,0.00048855,2]
[358524725,1745232637794,-500.0,0.00048855,2]
[358524726,1745232637804,-503.0697826,0.00048855,2]
[358524727,1745232637812,-1471.71674276,0.00048856,2]
[358524728,1745232637890,-20189.68884494,0.00048856,2]
[358524729,1745232637944,-489.78398155,0.00048856,2]
[358524730,1745232637998,-7475.3396246,0.00048856,2]
[358524925,1745232639995,-55594.6718134,0.00048856,2]
[358524927,1745232640004,-1296349.98873001,0.00048856,30]
[358524950,1745232640205,-1177.36941063,0.00048856,30]
[358524957,1745232640259,-12502.75220785,0.00048856,30]
[358524959,1745232640271,-3868.2,0.00048856,30]
[358525194,1745232642721,-871.52,0.00048856,30]
[358525201,1745232642776,-37000.00641025,0.00048856,30]
[358525224,1745232642987,-548.59204282,0.00048856,30]
[358525347,1745233831975,-1184.450174,0.00041864,2]
[358525348,1745233831984,-5589.28130167,0.00042074,2]
[358525349,1745233831998,-35232.40782823,0.00042074,2]
[358525350,1745233832007,-550.0,0.00042286,5]
[358525351,1745233832018,-228.74293199,0.000425,2]
[358525352,1745233832027,-250.0,0.00042542,2]
[358525353,1745233832037,-253.73,0.00043,120]
[358525354,1745233832047,-500.0,0.0004355,2]
[358525355,1745233832057,-178.35,0.000436,120]
[358525356,1745233832066,-1041.66,0.000436,120]
[358525357,1745233832076,-500.0,0.00043668,2]
[358525358,1745233832085,-283.7055,0.00043888,30]
[358525359,1745233832094,-150.99,0.00043888,2]
[358525360,1745233832103,-504.87009129,0.0004395,10]
[358525361,1745233832113,-174.844,0.00044547,71]
[358525362,1745233832122,-827.87,0.00044547,71]
[358525363,1745233832131,-6559.17,0.00044547,30]
[358525364,1745233832140,-8460.36,0.00044547,2]
[358525365,1745233832150,-1862.76,0.00044547,2]
[358525366,1745233832159,-5165.498,0.00044782,120]
[358525367,1745233832168,-5165.498,0.00044782,120]
[358525368,1745233832178,-5165.498,0.00044782,120]
[358525370,1745233832187,-5165.498,0.00044782,120]
[358525371,1745233832196,-5165.499,0.00044782,120]
[358525373,1745233832206,-500.0,0.000448,10]
[358525375,1745233832215,-159.8061936,0.000448,10]
[358525377,1745233832223,-500.0,0.0004505,10]
[358525379,1745233832232,-368.05526628,0.0004505,7]
[358525381,1745233832241,-155.90345957,0.0004505,10]
[358525383,1745233832250,-151.26,0.00045137,2]
[358525384,1745233832259,-770.0,0.00045157,5]
[358525385,1745233832269,-1320.17,0.00045344,2]
[358525386,1745233832278,-1117.14,0.00045376,2]
[358525387,1745233832287,-158.75,0.00045421,2]
[358525388,1745233832295,-200.0,0.00045534,2]
[358525389,1745233832304,-1238.59,0.00046244,5]
[358525390,1745233832314,-250.0,0.00046282,2]
[358525391,1745233832322,-43366.71319413,0.00046319,30]
[358525392,1745233832331,-175.8,0.00046381,2]
[358525393,1745233832340,-2305.71,0.000464,2]
[358525394,1745233832349,-1224.9,0.00046529,5]
[358525395,1745233832358,-1524.02107106,0.00046543,5]
[358525396,1745233832367,-174.8,0.00046573,120]
[358525397,1745233832376,-1244.14,0.00046596,5]
[358525398,1745233832385,-150.0,0.00046681,7]
[358525399,1745233832395,-250.0,0.0004675,2]
[358525400,1745233832404,-500.0,0.00046849,2]
[358525401,1745233832413,-250.0,0.00046999,120]
[358525402,1745233832422,-2279.676,0.00047123,30]
[358525403,1745233832431,-349.88894261,0.00047353,15]
[358525404,1745233832440,-1000.0,0.00047399,2]
[358525405,1745233832450,-500.0,0.000474,10]
[358525406,1745233832459,-628.10016536,0.000474,10]
[358525407,1745233832468,-267.56,0.00047453,2]
[358525408,1745233832477,-740.22,0.00047499,2]
[358525409,1745233832486,-349.88894254,0.00047509,15]
[358525410,1745233832495,-3136.69879396,0.00047565,15]
[358525411,1745233832505,-1000.0,0.00047565,2]
[358525412,1745233832514,-2500.0,0.00047565,2]
[358525413,1745233832524,-1320.17,0.00047608,2]
[358525414,1745233832534,-300.52,0.00047654,2]
[358525415,1745233832543,-22792.7848128,0.00047655,4]
[358525416,1745233832552,-300.52,0.00047655,2]
[358525417,1745233832562,-300.52,0.00047655,2]
[358525418,1745233832571,-300.52,0.00047655,2]
[358525419,1745233832580,-300.52,0.00047655,2]
[358525420,1745233832590,-300.52,0.00047655,2]
[358525421,1745233832599,-300.52,0.00047655,2]
[358525422,1745233832608,-300.52,0.00047655,2]
[358525423,1745233832617,-300.52,0.00047655,2]
[358525424,1745233832626,-300.52,0.00047655,2]
[358525425,1745233832635,-321.77997201,0.00047664,7]
[358525426,1745233832645,-266.59368936,0.00047664,7]
[358525427,1745233832653,-500.0,0.00047664,7]
[358525428,1745233832663,-1228.12,0.00047664,2]
[358525429,1745233832672,-572.51204365,0.00047664,7]
[358525430,1745233832681,-477.22614461,0.00047664,7]
[358525431,1745233832690,-500.0,0.00047664,7]
[358525432,1745233832699,-500.0,0.00047664,7]
[358525433,1745233832708,-500.0,0.00047664,7]
[358525434,1745233832717,-500.0,0.00047664,7]
[358525435,1745233832727,-3245.94,0.00047664,7]
[358525436,1745233832735,-530.4677841,0.00047664,7]
[358525437,1745233832872,-500.0,0.00047664,7]
[358525438,1745233832882,-500.0,0.00047664,7]
[358525439,1745233832892,-617.42,0.00047664,7]
[358525440,1745233832902,-500.0,0.00047664,7]
[358525441,1745233832912,-500.0,0.00047664,2]
[358525442,1745233832922,-31600.4982373,0.00047665,2]
[358525443,1745233832934,-27720.26624269,0.00047665,2]
[358525444,1745233834055,-152.87,0.00045362,120]
[358525445,1745233834080,-13.21827025,0.00047666,15]
[358525446,1745233838024,-534.39605401,0.00047664,2]
[358525447,1745233838034,-135220.17342001,0.00047665,2]
[358525448,1745233838044,-15572.0712,0.00047665,2]
[358525449,1745233838055,-336.67067229,0.00047666,15]
[358525450,1745233838065,-209.00893444,0.00047673,10]
[358525451,1745233838074,-623.76448604,0.00047673,10]
[358525452,1745233838083,-500.0,0.00047673,10]
[358525453,1745233838093,-299.93494927,0.00047673,10]
[358525454,1745233838103,-3136.69879392,0.00047698,15]
[358525455,1745233838113,-182.7584,0.00047758,2]
[358525456,1745233838122,-6950.614,0.00047765,2]
[358525457,1745233838131,-349.88894254,0.00047822,15]
[358525458,1745233838141,-1272.01,0.00047831,5]
[358525459,1745233838150,-1251.57,0.00047831,5]
[358525460,1745233838159,-1248.82,0.00047843,5]
[358525461,1745233838168,-1259.62,0.00047848,5]
[358525462,1745233838177,-22792.7848128,0.00047855,4]
[358525463,1745233838186,-200.0,0.00047858,2]
[358525464,1745233838195,-723.32877295,0.0004786,20]
[358525465,1745233838205,-1264.8,0.00047861,5]
[358525466,1745233838215,-23900.0,0.00047865,2]
[358525467,1745233838225,-1261.44,0.00047872,5]
[358525468,1745233838234,-500.0,0.00047873,10]
[358525469,1745233838243,-504.75280513,0.00047873,10]
[358525470,1745233838252,-2600.0,0.000479,17]
[358525471,1745233838262,-400.0,0.000479,17]
[358525472,1745233838271,-349.88894254,0.00047978,15]
[358525473,1745233838281,-22792.7848128,0.0004799,4]
[358525474,1745233838290,-500.0,0.00047999,7]
[358525475,1745233838300,-500.0,0.00047999,7]
[358525476,1745233838309,-155.47456227,0.00047999,7]
[358525477,1745233838318,-500.0,0.00047999,7]
[358525478,1745233838327,-3245.94,0.00047999,7]
[358525479,1745233838336,-343.6316734,0.00047999,7]
[358525480,1745233838346,-500.0,0.00047999,2]
[358525481,1745233838355,-5200.0,0.00048,17]
[358525482,1745233838364,-900.0,0.00048,17]
[358525483,1745233838373,-1000.0,0.00048,120]
[358525484,1745233838382,-22795.33691805,0.00048,2]
[358525485,1745233838391,-7800.0,0.000481,17]
[358525486,1745233838401,-1400.0,0.000481,17]
[358525487,1745233838410,-349.88894254,0.00048135,15]
[358525488,1745233838419,-10400.0,0.000482,17]
[358525489,1745233838429,-1900.0,0.000482,17]
[358525490,1745233838438,-302.0,0.0004821,2]
[358525492,1745233838448,-500.0,0.00048222,120]
[358525494,1745233838457,-369.27931883,0.00048222,120]
[358525496,1745233838467,-1077.0,0.00048223,5]
[358525498,1745233838476,-157.59,0.0004828,2]
[358525500,1745233838485,-22792.7848128,0.0004829,4]
[358525502,1745233838495,-349.88894254,0.00048291,15]
[358525505,1745233838505,-1716.15496351,0.000483,2]
[358525508,1745233838514,-13000.0,0.000483,17]
[358525510,1745233838524,-2400.0,0.000483,17]
[358525512,1745233838533,-500.0,0.00048373,10]
[358525514,1745233838542,-459.13962152,0.00048373,7]
[358525516,1745233838551,-500.0,0.00048373,10]
[358525518,1745233838561,-319.34433626,0.00048373,10]
[358525520,1745233838570,-91171.1392512,0.0004839,4]
[358525521,1745233838579,-33887.6429106,0.0004839,5]
[358525523,1745233838589,-500.0,0.00048399,7]
[358525526,1745233838599,-1228.12,0.00048399,2]
[358525528,1745233838607,-500.0,0.00048399,7]
[358525530,1745233838617,-3245.94,0.00048399,7]
[358525532,1745233838626,-617.42,0.00048399,7]
[358525534,1745233838636,-198536.74487996,0.000484,120]
[358525536,1745233838645,-2600.0,0.000484,17]
[358525538,1745233838654,-400.0,0.000484,17]
[358525540,1745233838663,-349.88894254,0.00048447,15]
[358525542,1745233838672,-722.82065066,0.00048474,2]
[358525544,1745233838681,-2600.0,0.000485,17]
[358525546,1745233838691,-400.0,0.000485,17]
[358525548,1745233838701,-11295.8809702,0.00048546,5]
[358525551,1745233838711,-500.0,0.00048556,2]
[358525552,1745233838720,-429.82,0.00048586,3]
[358525554,1745233838729,-722.82065066,0.00048586,2]
[358525556,1745233838738,-150.0,0.00048587,7]
[358525558,1745233838747,-150.0,0.00048587,7]
[358525560,1745233838757,-152.61,0.000486,45]
[358525562,1745233838767,-152.61,0.000486,45]
[358525564,1745233838778,-152.61,0.000486,45]
[358525566,1745233838789,-152.61,0.000486,45]
[358525568,1745233838798,-152.61,0.000486,45]
[358525570,1745233838807,-152.61,0.000486,45]
[358525572,1745233838817,-443.0,0.000486,7]
[358525574,1745233838826,-2600.0,0.000486,17]
[358525576,1745233838836,-400.0,0.000486,17]
[358525578,1745233838846,-349.88894254,0.00048604,15]
[358525580,1745233838855,-150.0,0.00048608,7]
[358525582,1745233838865,-289.42437579,0.00048636,33]
[358525584,1745233838874,-150.0,0.00048638,7]
[358525586,1745233838884,-22792.7848128,0.0004865,4]
[358525588,1745233838893,-11295.8809702,0.0004865,5]
[358525590,1745233838902,-1000.0,0.00048656,2]
[358525592,1745233838911,-1267.5585,0.00048656,2]
[358525594,1745233838920,-2510.2322,0.00048656,2]
[358525596,1745233838929,-289.42437579,0.00048657,33]
[358525598,1745233838938,-500.0,0.00048659,7]
[358525600,1745233838947,-3245.94,0.00048659,7]
[358525602,1745233838957,-17296.607,0.0004866,2]
[358525604,1745233838966,-160.36743009,0.00048663,14]
[358525606,1745233838979,-150.0,0.00048663,7]
[358525608,1745233838988,-150.0,0.00048673,7]
[358525610,1745233838997,-289.42437579,0.00048677,33]
[358525612,1745233839007,-150.0,0.00048685,7]
[358525614,1745233839017,-289.42437579,0.00048698,33]
[358525616,1745233839026,-2600.0,0.000487,17]
[358525618,1745233839036,-400.0,0.000487,17]
[358525620,1745233839046,-150.0,0.00048701,7]
[358525622,1745233839055,-150.0,0.00048703,7]
[358525624,1745233839065,-150.0,0.00048706,7]
[358525626,1745233839075,-289.42437579,0.00048719,33]
[358525628,1745233839085,-150.0,0.00048721,7]
[358525630,1745233839094,-150.0,0.00048721,7]
[358525632,1745233839103,-11295.8809702,0.00048735,5]
[358525634,1745233839113,-22422.62698446,0.00048735,120]
[358525636,1745233839122,-22792.7848128,0.00048736,4]
[358525638,1745233839131,-22591.7619404,0.00048736,5]
[358525640,1745233839140,-442.2366144,0.00048736,7]
[358525642,1745233839149,-289.42437579,0.00048739,33]
[358525644,1745233839158,-184.9874649,0.00048745,7]
[358525645,1745233839167,-449.72,0.00048745,7]
[358525647,1745233839176,-508.52585241,0.00048745,7]
[358525649,1745233839185,-500.0,0.00048745,7]
[358525651,1745233839194,-500.0,0.00048745,7]
[358525653,1745233839203,-500.0,0.00048745,7]
[358525655,1745233839212,-502.57506222,0.00048745,7]
[358525657,1745233839222,-505.09588526,0.00048745,7]
[358525659,1745233839231,-500.0,0.00048745,7]
[358525661,1745233839240,-570.0768427,0.00048745,7]
[358525663,1745233839249,-500.0,0.00048745,7]
[358525665,1745233839257,-500.0,0.00048745,7]
[358525667,1745233839267,-500.0,0.00048745,7]
[358525669,1745233839276,-500.0,0.00048745,7]
[358525671,1745233839285,-500.0,0.00048745,7]
[358525673,1745233839293,-500.0,0.00048745,7]
[358525675,1745233839303,-500.0,0.00048745,7]
[358525677,1745233839312,-500.0,0.00048745,7]
[358525679,1745233839321,-523.38480097,0.00048745,7]
[358525681,1745233839330,-500.0,0.00048745,7]
[358525683,1745233839339,-500.0,0.00048745,7]
[358525685,1745233839349,-536.2460923,0.00048745,7]
[358525687,1745233839358,-500.0,0.00048745,7]
[358525689,1745233839367,-500.0,0.00048745,7]
[358525691,1745233839376,-483.61157394,0.00048745,7]
[358525693,1745233839385,-500.0,0.00048745,7]
[358525695,1745233839395,-500.0,0.00048745,7]
[358525697,1745233839403,-500.0,0.00048745,7]
[358525699,1745233839413,-500.0,0.00048745,7]
[358525701,1745233839422,-500.0,0.00048745,7]
[358525703,1745233839431,-500.0,0.00048745,7]
[358525705,1745233839440,-512.69045638,0.00048745,7]
[358525707,1745233839450,-267.13372996,0.00048745,7]
[358525709,1745233839459,-22792.7848128,0.00048745,4]
[358525711,1745233839468,-11295.8809702,0.00048745,5]
[358525713,1745233839477,-500.0,0.00048746,7]
[358525715,1745233839487,-500.0,0.00048746,7]
[358525717,1745233839496,-500.0,0.00048746,7]
[358525719,1745233839505,-622.93,0.00048746,7]
[358525721,1745233839514,-500.0,0.00048746,7]
[358525723,1745233839523,-500.0,0.00048746,7]
[358525725,1745233839533,-720.5,0.00048746,7]
[358525727,1745233839542,-500.0,0.00048746,7]
[358525729,1745233839552,-500.0,0.00048746,7]
[358525731,1745233839562,-500.0,0.00048746,7]
[358525733,1745233839571,-500.0,0.00048746,7]
[358525735,1745233839580,-371.72985152,0.00048746,7]
[358525737,1745233839589,-500.0,0.00048746,7]
[358525739,1745233839599,-500.0,0.00048746,7]
[358525741,1745233839608,-500.0,0.00048746,7]
[358525743,1745233839617,-358.27197136,0.00048746,7]
[358525745,1745233839626,-4024.13,0.00048746,7]
[358525747,1745233839635,-500.0,0.00048746,7]
[358525749,1745233839644,-500.0,0.00048746,7]
[358525751,1745233839653,-500.0,0.00048746,7]
[358525753,1745233839663,-500.0,0.00048746,7]
[358525755,1745233839671,-520.12717481,0.00048746,7]
[358525757,1745233839680,-500.0,0.00048746,7]
[358525759,1745233839689,-500.0,0.00048746,7]